bitfinex/quotes_SOLUSD_20251218
["timestamp","ask_amount","ask_price","bid_price","bid_amount"]
[1766025165354,3.22704588,123.81,123.77,0.67]
[1766025166056,0.67,123.82,123.79,0.67]
[1766025166581,0.67,123.82,123.78,9.47994492]
[1766025168201,11.10767296,123.83,123.79,0.67]
[1766025168791,0.67,123.83,123.79,0.67]
[1766025168994,3.22704588,123.84,123.79,0.67]
[1766025169295,8.07497828,123.84,123.79,0.67]
[1766025169496,0.67,123.82,123.79,0.67]
[1766025173294,0.67,123.82,123.78,9.50994492]
[1766025173881,0.72,123.81,123.78,9.50994492]
[1766025174777,0.72,123.81,123.77,2.55704588]
[1766025174778,0.72,123.8,123.77,0.7]
[1766025174972,3.27704588,123.81,123.77,0.7]
[1766025177585,0.72,123.81,123.77,0.7]
[1766025178500,8.7949354,123.84,123.78,8.80994492]
[1766025178707,3.27704588,123.83,123.79,0.7]
[1766025179103,0.72,123.82,123.79,0.7]
[1766025181082,0.68,123.81,123.78,0.66]
[1766025181288,3.23641603,123.81,123.78,0.66]
[1766025181596,0.68,123.81,123.78,0.66]
[1766025184210,10.63276162,123.82,123.78,0.66]
[1766025184415,3.23641603,123.83,123.78,2.55641603]
[1766025184604,3.23641603,123.83,123.77,18.32994492]
[1766025184605,0.68,123.81,123.77,18.32994492]
[1766025184909,0.68,123.81,123.78,0.66]
[1766025185108,2.55641603,123.82,123.78,0.66]
[1766025185316,0.7,123.83,123.79,0.67]
[1766025186115,0.7,123.83,123.8,0.67]
[1766025188686,0.7,123.85,123.81,0.67]
[1766025190702,11.33967651,123.87,123.83,0.67]
[1766025190897,0.71,123.86,123.83,0.67]
[1766025191105,9.57,123.88,123.84,8.80994492]
[1766025191398,0.71,123.88,123.85,0.71]
[1766025191598,0.71,123.88,123.84,9.51994492]
[1766025191807,0.71,123.87,123.84,9.51994492]
[1766025192000,2.55641603,123.87,123.83,8.80994492]
[1766025192207,3.26641603,123.87,123.84,0.71]
[1766025192392,0.71,123.87,123.84,0.71]
[1766025195399,10.43767296,123.88,123.85,0.71]
[1766025196308,11.15767296,123.88,123.85,0.71]
[1766025203840,0.71,123.87,123.85,0.71]
[1766025204042,10.43767296,123.88,123.85,0.71]
[1766025204338,11.14767296,123.88,123.85,0.71]
[1766025206641,0.71,123.87,123.85,0.71]
[1766025206847,0.71,123.87,123.84,0.68]
[1766025210342,0.71,123.87,123.83,8.80994492]
[1766025210642,0.71,123.87,123.84,0.68]
[1766025211145,8.07313875,123.87,123.83,2.55641603]
[1766025211444,0.71,123.85,123.81,0.68]
[1766025211628,0.71,123.85,123.81,3.23641603]
[1766025212333,0.71,123.85,123.8,8.80994492]
[1766025212334,0.71,123.85,123.8,9.48994492]
[1766025212519,0.71,123.83,123.79,3.23641603]
[1766025213043,0.71,123.83,123.79,0.68]
[1766025213223,0.71,123.83,123.79,2.55641603]
[1766025213424,0.71,123.83,123.8,8.80994492]
[1766025213639,10.43767296,123.84,123.81,0.68]
[1766025213824,11.14767296,123.84,123.81,0.68]
[1766025215246,10.43767296,123.86,123.82,0.68]
[1766025215454,0.71,123.85,123.82,0.68]
[1766025217328,19.48959074,123.87,123.82,2.55641603]
[1766025217329,21.85408899,123.87,123.82,2.55641603]
[1766025217548,19.29767296,123.87,123.83,0.68]
[1766025217756,20.00767296,123.87,123.84,0.68]
[1766025218251,21.85408899,123.87,123.83,8.80994492]
[1766025218554,0.71,123.86,123.83,8.80994492]
[1766025218755,0.71,123.86,123.83,9.48994492]
[1766025219632,0.71,123.84,123.81,0.68]
[1766025220254,2.55641603,123.85,123.81,0.68]
[1766025220559,0.71,123.85,123.81,0.68]
[1766025221841,13.69408899,123.87,123.82,0.72]
[1766025222154,11.13767296,123.87,123.83,0.72]
[1766025223356,10.43767296,123.87,123.83,0.72]
[1766025224039,11.14767296,123.87,123.83,0.72]
[1766025224955,11.14767296,123.87,123.84,8.80994492]
[1766025225259,11.14767296,123.87,123.84,9.52994492]
[1766025226054,11.14767296,123.87,123.85,0.72]
[1766025228956,9.51,123.89,123.85,0.72]
[1766025229257,11.08767296,123.89,123.85,0.72]
[1766025229439,0.65,123.89,123.85,0.72]
[1766025231967,3.99089921,123.9,123.85,0.72]
[1766025232170,4.71089921,123.9,123.86,0.72]
[1766025232355,0.72,123.9,123.88,0.72]
[1766025232554,0.72,123.91,123.88,0.72]
[1766025232761,0.72,123.92,123.89,0.72]
[1766025233272,0.72,123.91,123.88,0.72]
[1766025239164,0.72,123.91,123.87,9.52994492]
[1766025239656,0.72,123.91,123.88,0.72]
[1766025242262,0.72,123.9,123.87,17.66994492]
[1766025242579,0.72,123.9,123.87,18.38994492]
[1766025243289,4.71089921,123.9,123.87,8.86]
[1766025243462,3.99089921,123.88,123.84,9.52994492]
[1766025243664,0.72,123.87,123.84,8.80994492]
[1766025243991,0.72,123.87,123.84,9.49994492]
[1766025245975,0.72,123.87,123.83,0.7]
[1766025246380,0.7,123.89,123.85,0.7]
[1766025246603,0.7,123.89,123.86,0.7]
[1766025248085,0.7,123.89,123.85,9.56]
[1766025248776,0.7,123.89,123.85,8.86]
[1766025248977,0.7,123.89,123.85,9.56]
[1766025249875,0.7,123.89,123.86,9.50994492]
[1766025252699,3.98947141,123.87,123.83,17.66994492]
[1766025253004,0.66,123.86,123.83,18.38994492]
[1766025260099,0.67,123.85,123.83,8.86]
[1766025260309,0.67,123.85,123.81,9.57]
[1766025260603,0.67,123.85,123.81,8.86]
[1766025260801,0.67,123.84,123.81,8.80994492]
[1766025261006,3.98947141,123.84,123.81,8.86]
[1766025261209,0.67,123.82,123.81,8.86]
[1766025261385,0.67,123.82,123.79,0.71]
[1766025261585,0.67,123.82,123.8,0.71]
[1766025261985,0.67,123.82,123.79,9.57]
[1766025262298,4.65947141,123.84,123.8,0.71]
[1766025262674,0.67,123.83,123.8,0.71]
[1766025267614,4.65947141,123.85,123.81,0.71]
[1766025267798,0.67,123.84,123.81,0.71]
[1766025267992,0.67,123.84,123.8,9.51994492]
[1766025268496,0.67,123.83,123.8,9.51994492]
[1766025271711,3.98947141,123.84,123.8,8.80994492]
[1766025271900,0.67,123.84,123.81,0.71]
[1766025272296,8.86,123.87,123.82,8.86]
[1766025272501,0.67,123.88,123.85,0.71]
[1766025272899,4.65947141,123.88,123.85,0.71]
[1766025273310,3.98947141,123.88,123.85,0.71]
[1766025273590,3.98947141,123.89,123.85,0.71]
[1766025273812,10.43767296,123.89,123.86,0.71]
[1766025274013,0.67,123.93,123.89,0.71]
[1766025274225,0.67,123.93,123.9,0.71]
[1766025274608,0.67,123.93,123.89,9.57]
[1766025274921,0.67,123.93,123.89,13.55947141]
[1766025275420,10.43767296,123.94,123.91,3.98947141]
[1766025275600,0.67,123.93,123.9,13.50941633]
[1766025276422,11.10767296,123.93,123.9,13.50941633]
[1766025276794,11.10767296,123.93,123.9,9.51994492]
[1766025277000,0.2,123.95,123.91,0.71]
[1766025277329,0.2,123.95,123.93,0.71]
[1766025277625,0.67,123.97,123.94,4.69947141]
[1766025277827,10.43767296,123.97,123.95,12.79941633]
[1766025278033,0.87,123.99,123.96,4.69947141]
[1766025278631,0.67,123.98,123.95,9.57]
[1766025278836,0.67,123.98,123.95,13.55947141]
[1766025279241,0.67,123.98,123.95,9.57]
[1766025279533,0.67,123.98,123.95,13.55947141]
[1766025282613,0.67,123.98,123.95,9.57]
[1766025282823,0.67,123.98,123.95,13.55947141]
[1766025284147,0.67,123.98,123.95,4.69947141]
[1766025285237,0.89,123.99,123.96,0.72]
[1766025285421,0.69,123.98,123.95,13.51941633]
[1766025285814,0.2,123.99,123.97,4.70947141]
[1766025286015,0.89,124.01,123.98,4.70947141]
[1766025286509,0.89,124.01,123.98,0.72]
[1766025286717,0.89,124.01,123.98,4.70947141]
[1766025287423,0.89,124.01,123.98,3.26798979]
[1766025287625,0.2,124.01,123.99,2.54798979]
[1766025288022,0.2,124.01,123.98,12.07793471]
[1766025289039,0.2,124.01,123.99,3.26798979]
[1766025289838,0.2,124.01,123.99,0.72]
[1766025290525,0.2,124.01,123.99,3.26798979]
[1766025292031,0.2,124.03,124.01,0.72]
[1766025292224,0.1,124.04,124.02,0.7]
[1766025292824,0.79,124.04,124.01,9.56]
[1766025293036,0.79,124.04,124.01,12.10798979]
[1766025294116,3.33798979,124.04,124.0,17.64994492]
[1766025294316,0.71,124.03,123.98,2.54798979]
[1766025294535,0.71,124.02,123.99,8.84]
[1766025295236,0.71,124.02,123.99,8.80994492]
[1766025295540,0.71,124.02,123.99,8.84]
[1766025298342,0.71,124.01,123.96,0.67]
[1766025298523,0.71,124.0,123.96,9.51]
[1766025300459,0.71,124.01,123.98,0.67]
[1766025300650,0.71,124.01,123.97,3.21798979]
[1766025300852,0.71,124.01,123.97,12.02793471]
[1766025301029,0.71,124.01,123.97,9.47994492]
[1766025301961,0.71,124.0,123.96,0.67]
[1766025302253,0.71,124.0,123.96,9.51]
[1766025302832,0.71,124.0,123.96,12.05798979]
[1766025303054,0.71,124.0,123.97,12.02793471]
[1766025303455,0.71,124.0,123.97,20.86793471]
[1766025303752,0.71,124.0,123.97,18.31994492]
[1766025305688,10.61147089,124.02,123.99,0.67]
[1766025305689,0.71,124.02,123.99,0.67]
[1766025305895,10.43767296,124.03,123.99,0.67]
[1766025306184,0.71,124.02,123.99,0.67]
[1766025306356,0.71,124.02,123.98,0.67]
[1766025306557,0.71,124.02,123.98,3.21798979]
[1766025307487,0.71,124.02,123.98,2.54798979]
[1766025307676,0.71,124.03,124.0,3.21798979]
[1766025307853,0.1,124.04,124.01,2.54798979]
[1766025308058,0.1,124.04,124.01,9.47994492]
[1766025308256,0.71,124.03,123.98,0.67]
[1766025308454,0.71,124.02,123.99,20.86793471]
[1766025308668,8.16196949,124.04,124.01,9.47994492]
[1766025308669,0.1,124.04,124.01,9.47994492]
[1766025308874,0.81,124.04,124.01,12.02793471]
[1766025309076,0.81,124.04,124.01,11.35793471]
[1766025309254,0.81,124.04,124.01,12.02793471]
[1766025309449,0.81,124.04,124.01,9.47994492]
[1766025309968,0.2,124.06,124.03,2.54798979]
[1766025310180,0.2,124.06,124.04,2.54798979]
[1766025310364,0.2,124.06,124.04,3.21798979]
[1766025310679,0.2,124.06,124.04,0.67]
[1766025311180,0.66,124.05,124.01,9.50994492]
[1766025311479,0.86,124.06,124.02,8.80994492]
[1766025311680,0.86,124.06,124.03,0.7]
[1766025312277,0.2,124.06,124.03,0.7]
[1766025312455,0.86,124.06,124.03,0.7]
[1766025313863,0.86,124.06,124.02,9.47994492]
[1766025314684,3.40660296,124.06,124.02,9.47994492]
[1766025314865,3.40660296,124.06,124.01,8.84]
[1766025314866,0.72,124.04,124.01,8.84]
[1766025315065,0.72,124.04,124.01,18.31994492]
[1766025315381,3.46660296,124.06,124.02,8.80994492]
[1766025315558,11.35767296,124.06,124.03,0.67]
[1766025316176,0.92,124.06,124.02,0.67]
[1766025316607,0.92,124.06,124.01,28.26001157]
[1766025316608,2.54660296,124.05,123.99,11.10767296]
[1766025316766,0.72,124.03,124.0,18.31994492]
[1766025317469,3.26660296,124.04,124.0,18.31994492]
[1766025318874,2.54660296,124.02,123.99,8.84]
[1766025319064,2.54660296,124.02,123.99,9.51]
[1766025319280,2.54660296,124.02,123.99,0.67]
[1766025319281,0.72,124.02,123.99,0.67]
[1766025319689,3.26660296,124.04,124.0,8.80994492]
[1766025319866,0.72,124.04,124.01,0.67]
[1766025321711,0.72,124.04,124.0,9.47994492]
[1766025321900,0.72,124.04,124.01,0.67]
[1766025322493,0.72,124.05,124.02,8.80994492]
[1766025322792,0.72,124.04,124.02,8.80994492]
[1766025324096,0.72,124.05,124.02,8.80994492]
[1766025324794,0.2,124.06,124.03,0.67]
[1766025325598,0.2,124.06,124.04,8.80994492]
[1766025325894,0.2,124.06,124.03,8.80994492]
[1766025325895,0.92,124.06,124.03,8.80994492]
[1766025326100,0.2,124.06,124.04,0.67]
[1766025326299,0.72,124.09,124.06,8.80994492]
[1766025326975,18.69542607,124.11,124.06,8.80994492]
[1766025326976,0.2,124.11,124.07,8.84]
[1766025327290,0.92,124.11,124.08,8.80994492]
[1766025328282,0.72,124.1,124.05,10.43767296]
[1766025328504,0.72,124.1,124.07,8.80994492]
[1766025329206,0.72,124.1,124.07,9.30994492]
[1766025330301,0.2,124.11,124.08,0.5]
[1766025330810,0.72,124.14,124.1,9.30994492]
[1766025331303,3.26660296,124.14,124.1,9.30994492]
[1766025331617,0.72,124.13,124.1,9.30994492]
[1766025331976,0.72,124.13,124.1,8.80994492]
[1766025333189,0.72,124.12,124.1,8.80994492]
[1766025333806,10.60227528,124.14,124.1,8.80994492]
[1766025334099,0.72,124.13,124.1,9.30994492]
[1766025334504,0.82,124.15,124.11,9.30994492]
[1766025335602,8.87477472,124.15,124.11,9.30994492]
[1766025335798,0.72,124.14,124.11,8.80994492]
[1766025337019,8.15477263,124.15,124.11,8.80994492]
[1766025337218,0.72,124.14,124.11,8.80994492]
[1766025337889,2.54660296,124.12,124.07,2.54660296]
[1766025338087,0.72,124.1,124.08,8.80994492]
[1766025338290,2.54660296,124.12,124.08,8.80994492]
[1766025338481,0.72,124.11,124.08,8.80994492]
[1766025341682,3.26660296,124.11,124.08,8.80994492]
[1766025342311,2.54660296,124.11,124.08,8.80994492]
[1766025342510,0.72,124.08,124.04,8.80994492]
[1766025342695,3.26660296,124.08,124.05,8.84]
[1766025342889,2.54660296,124.08,124.04,9.30994492]
[1766025343083,0.72,124.07,124.04,8.80994492]
[1766025343290,0.72,124.06,124.04,8.80994492]
[1766025343488,3.26660296,124.06,124.03,8.84]
[1766025343699,0.72,124.05,124.03,8.84]
[1766025343989,3.26660296,124.05,124.0,10.43767296]
[1766025344316,0.72,124.04,124.02,8.80994492]
[1766025344700,0.72,124.05,124.02,9.30994492]
[1766025345415,3.26660296,124.06,124.02,9.30994492]
[1766025345995,0.72,124.05,124.02,9.30994492]
[1766025348306,0.72,124.05,124.02,8.80994492]
[1766025349417,4.69986874,124.05,124.02,8.80994492]
[1766025349606,4.69986874,124.05,124.02,9.30994492]
[1766025349809,4.69986874,124.06,124.02,9.30994492]
[1766025350017,0.72,124.06,124.02,9.30994492]
[1766025350428,0.72,124.06,124.03,0.5]
[1766025350610,4.69986874,124.06,124.03,0.5]
[1766025351225,4.69986874,124.06,124.02,9.30994492]
[1766025351526,0.72,124.05,124.02,9.30994492]
[1766025351941,4.69986874,124.06,124.02,9.30994492]
[1766025352142,4.69986874,124.06,124.03,0.5]
[1766025352341,0.72,124.08,124.03,3.97986874]
[1766025352654,0.72,124.09,124.06,8.80994492]
[1766025352820,0.72,124.1,124.07,9.34]
[1766025354255,0.72,124.13,124.08,13.28981366]
[1766025355322,0.72,124.13,124.09,0.5]
[1766025355512,0.72,124.13,124.1,18.14994492]
[1766025355716,12.13468547,124.15,124.1,18.14994492]
[1766025355717,18.59248969,124.15,124.1,18.14994492]
[1766025355915,0.72,124.14,124.1,22.12981366]
[1766025356527,14.5175417,124.15,124.12,0.5]
[1766025356528,0.82,124.15,124.12,0.5]
[1766025356834,0.82,124.15,124.11,0.5]
[1766025357239,0.82,124.15,124.12,8.80994492]
[1766025357547,0.82,124.15,124.12,9.30994492]
[1766025357719,0.82,124.15,124.12,8.80994492]
[1766025359787,0.1,124.15,124.12,16.86655202]
[1766025360066,0.1,124.15,124.13,0.5]
[1766025360364,0.1,124.16,124.14,9.30994492]
[1766025360537,0.1,124.17,124.14,9.30994492]
[1766025360538,0.1,124.17,124.16,8.80994492]
[1766025361350,0.72,124.19,124.15,0.2]
[1766025361568,0.72,124.2,124.17,8.80994492]
[1766025361865,0.72,124.19,124.14,0.2]
[1766025362053,0.72,124.19,124.16,8.80994492]
[1766025363662,0.72,124.18,124.14,17.64994492]
[1766025363860,0.72,124.18,124.14,17.84994492]
[1766025364758,0.72,124.18,124.14,21.82981366]
[1766025365067,0.72,124.18,124.14,21.62981366]
[1766025365255,0.72,124.18,124.14,17.64994492]
[1766025365572,0.72,124.18,124.14,17.84994492]
[1766025370267,0.72,124.16,124.14,17.64994492]
[1766025371464,0.66,124.17,124.14,17.64994492]
[1766025371667,0.66,124.18,124.15,0.2]
[1766025371870,15.0775417,124.2,124.16,0.2]
[1766025372064,0.66,124.19,124.16,0.2]
[1766025372578,0.66,124.19,124.15,12.234566]
[1766025373056,10.43767296,124.2,124.17,8.80994492]
[1766025373975,14.4175417,124.2,124.17,8.80994492]
[1766025375278,0.66,124.2,124.17,17.64994492]
[1766025375463,0.66,124.22,124.18,0.71]
[1766025375657,4.63986874,124.22,124.18,0.71]
[1766025375857,0.66,124.21,124.18,0.71]
[1766025376058,0.66,124.21,124.19,8.80994492]
[1766025376654,4.73986874,124.23,124.19,9.51994492]
[1766025376854,0.66,124.22,124.19,9.51994492]
[1766025377067,0.66,124.22,124.19,8.80994492]
[1766025378480,0.66,124.22,124.19,9.51994492]
[1766025378775,0.66,124.22,124.19,8.80994492]
[1766025378972,4.63986874,124.22,124.19,8.80994492]
[1766025379490,0.66,124.22,124.19,8.80994492]
[1766025379976,4.63986874,124.22,124.19,8.80994492]
[1766025380557,0.66,124.19,124.15,11.14767296]
[1766025380752,28.17594307,124.22,124.17,8.80994492]
[1766025380957,0.66,124.19,124.17,8.80994492]
[1766025381663,3.97986874,124.18,124.14,0.71]
[1766025381988,4.63986874,124.18,124.16,8.80994492]
[1766025382198,4.63986874,124.18,124.15,8.84]
[1766025382371,4.63272758,124.16,124.13,17.64994492]
[1766025382757,3.97272758,124.15,124.13,8.84]
[1766025382980,0.66,124.14,124.13,8.84]
[1766025383168,4.63272758,124.14,124.11,17.64994492]
[1766025383570,0.66,124.13,124.11,17.64994492]
[1766025383770,0.66,124.13,124.11,8.80994492]
[1766025384889,3.97272758,124.14,124.11,8.80994492]
[1766025385073,4.63272758,124.14,124.11,8.80994492]
[1766025385894,3.97272758,124.13,124.1,8.84]
[1766025386291,4.63272758,124.13,124.1,8.84]
[1766025386794,0.66,124.13,124.1,17.64994492]
[1766025387287,4.63272758,124.13,124.1,17.64994492]
[1766025387497,0.66,124.12,124.1,17.64994492]
[1766025387690,3.97272758,124.13,124.1,17.64994492]
[1766025387896,4.63272758,124.13,124.1,17.64994492]
[1766025388885,0.66,124.1,124.08,8.80994492]
[1766025389392,4.63272758,124.11,124.08,8.80994492]
[1766025389589,0.66,124.11,124.08,8.80994492]
[1766025391793,3.97272758,124.11,124.08,9.51994492]
[1766025391992,0.66,124.11,124.08,9.51994492]
[1766025392291,4.63272758,124.12,124.09,0.71]
[1766025392490,4.63272758,124.12,124.09,9.55]
[1766025392663,4.63272758,124.14,124.1,8.80994492]
[1766025392863,3.97272758,124.14,124.1,9.51994492]
[1766025393089,0.66,124.13,124.1,8.80994492]
[1766025393386,0.66,124.12,124.1,8.80994492]
[1766025393581,0.66,124.13,124.1,8.80994492]
[1766025394601,4.63272758,124.15,124.1,8.80994492]
[1766025394797,4.63272758,124.18,124.14,0.71]
[1766025394969,4.63272758,124.19,124.15,9.51994492]
[1766025395282,0.66,124.18,124.15,9.51994492]
[1766025395661,0.66,124.19,124.15,9.51994492]
[1766025395868,0.66,124.18,124.15,8.80994492]
[1766025396090,0.66,124.17,124.14,8.80994492]
[1766025396392,0.66,124.17,124.14,9.51994492]
[1766025396591,0.66,124.17,124.14,8.80994492]
[1766025397090,0.66,124.16,124.1,4.68272758]
[1766025397294,0.66,124.14,124.11,28.79761788]
[1766025397672,0.66,124.14,124.11,18.35994492]
[1766025397875,4.63272758,124.15,124.11,18.35994492]
[1766025398082,0.66,124.13,124.11,8.80994492]
[1766025398281,0.66,124.13,124.11,17.64994492]
[1766025400379,8.05347507,124.17,124.11,17.64994492]
[1766025400695,0.66,124.14,124.11,8.80994492]
[1766025402273,4.63272758,124.14,124.11,8.80994492]
[1766025403039,0.66,124.14,124.11,8.80994492]
[1766025403185,0.68,124.13,124.11,8.80994492]
[1766025403590,0.68,124.13,124.1,8.84]
[1766025403788,4.65272758,124.13,124.1,8.84]
[1766025403990,0.68,124.12,124.1,8.84]
[1766025404195,0.68,124.12,124.09,17.64994492]
[1766025404196,0.68,124.11,124.09,17.64994492]
[1766025404824,0.68,124.12,124.09,18.35994492]
[1766025405188,0.68,124.12,124.09,17.64994492]
[1766025406504,0.68,124.12,124.09,8.80994492]
[1766025406712,0.68,124.12,124.09,17.64994492]
[1766025406914,0.68,124.1,124.07,8.80994492]
[1766025407086,0.68,124.09,124.07,8.84]
[1766025408118,11.11767296,124.12,124.09,0.71]
[1766025408326,0.68,124.12,124.09,0.71]
[1766025409211,0.68,124.12,124.08,13.4926725]
[1766025409417,0.68,124.12,124.08,12.06393678]
[1766025409800,0.68,124.12,124.08,11.35393678]
[1766025410114,0.68,124.12,124.09,0.71]
[1766025411004,0.68,124.12,124.08,8.80994492]
[1766025411206,3.22399186,124.12,124.08,9.51994492]
[1766025412816,3.22399186,124.09,124.05,0.71]
[1766025413024,3.22399186,124.09,124.06,8.80994492]
[1766025413416,3.22399186,124.09,124.06,9.51994492]
[1766025414089,2.54399186,124.1,124.06,9.51994492]
[1766025414290,0.68,124.09,124.06,9.51994492]
[1766025420518,0.68,124.1,124.07,0.71]
[1766025420821,0.68,124.09,124.06,9.51994492]
[1766025422625,0.68,124.06,124.01,8.80994492]
[1766025422921,2.54399186,124.07,124.05,8.80994492]
[1766025423123,3.22399186,124.08,124.05,9.51994492]
[1766025425139,3.22399186,124.06,124.03,9.51994492]
[1766025425438,0.68,124.05,124.03,8.80994492]
[1766025427233,10.43767296,124.08,124.03,8.80994492]
[1766025427234,0.68,124.08,124.04,0.71]
[1766025427407,0.68,124.08,124.05,9.51994492]
[1766025427908,2.54399186,124.07,124.03,8.80994492]
[1766025428225,0.68,124.06,124.03,9.51994492]
[1766025429202,3.22399186,124.07,124.04,0.71]
[1766025429618,3.22399186,124.08,124.05,9.51994492]
[1766025431532,2.54399186,124.07,124.03,0.68]
[1766025431707,3.25399186,124.07,124.04,9.48994492]
[1766025432707,0.71,124.07,124.04,9.48994492]
[1766025437139,0.71,124.07,124.03,8.84]
[1766025437140,8.06009821,124.07,124.03,8.84]
[1766025437344,0.71,124.06,124.03,9.52]
[1766025437720,0.71,124.06,124.0,0.68]
[1766025437721,0.71,124.05,124.0,0.68]
[1766025437928,0.71,124.04,124.01,9.48994492]
[1766025439422,19.27767296,124.07,124.01,2.54399186]
[1766025439644,21.75193017,124.07,124.03,0.68]
[1766025439855,0.71,124.06,124.03,0.68]
[1766025440148,0.71,124.08,124.05,0.68]
[1766025440327,0.71,124.07,124.04,9.48994492]
[1766025442253,0.71,124.06,123.98,41.95530974]
[1766025442549,11.14767296,124.06,124.01,3.22399186]
[1766025442736,0.71,124.05,124.02,0.68]
[1766025443947,0.71,124.06,124.03,9.48994492]
[1766025444537,3.25399186,124.09,124.04,0.68]
[1766025444746,8.76867206,124.09,124.05,0.68]
[1766025445048,0.71,124.08,124.05,0.68]
[1766025445953,0.71,124.09,124.06,0.68]
[1766025446334,0.71,124.1,124.06,0.68]
[1766025450455,2.54500902,124.1,124.06,0.68]
[1766025450760,0.71,124.09,124.06,0.68]
[1766025451848,3.25500902,124.09,124.06,0.68]
[1766025452071,0.71,124.08,124.05,9.48994492]
[1766025452863,0.71,124.07,124.04,0.68]
[1766025453359,0.71,124.06,124.03,8.80994492]
[1766025453564,0.71,124.06,124.03,9.48994492]
[1766025454466,3.25500902,124.06,124.03,9.48994492]
[1766025455867,10.43767296,124.08,124.04,8.80994492]
[1766025456066,3.25500902,124.06,124.02,0.68]
[1766025456253,0.71,124.05,124.02,0.68]
[1766025456565,3.25500902,124.05,124.02,0.68]
[1766025456771,0.71,124.05,124.02,0.68]
[1766025460450,0.71,124.05,124.02,8.80994492]
[1766025460650,2.54500902,124.05,124.02,8.80994492]
[1766025460850,0.66,124.04,124.02,8.80994492]
[1766025461653,0.66,124.04,124.01,8.84]
[1766025461859,0.66,124.03,124.01,8.84]
[1766025462154,0.66,124.04,124.01,9.51]
[1766025462471,0.66,124.04,124.01,8.84]
[1766025463681,8.06210752,124.04,124.01,8.84]
[1766025463870,0.66,124.03,124.01,8.84]
[1766025464068,0.57,124.01,123.98,0.67]
[1766025464269,0.57,124.02,123.99,0.67]
[1766025465060,17.47016242,124.07,124.01,2.54500902]
[1766025465259,0.57,124.06,124.03,0.67]
[1766025465852,17.47016242,124.07,124.03,0.67]
[1766025466275,0.57,124.07,124.04,8.80994492]
[1766025466479,0.57,124.07,124.04,9.47994492]
[1766025469678,8.05806872,124.1,124.06,0.67]
[1766025469872,12.60632345,124.1,124.06,0.67]
[1766025471180,0.57,124.09,124.06,0.67]
[1766025472482,12.81825473,124.12,124.06,0.67]
[1766025472661,12.60302718,124.15,124.1,0.67]
[1766025472856,0.57,124.14,124.1,0.67]
[1766025473171,0.57,124.14,124.09,3.97825473]
[1766025473172,0.57,124.13,124.09,0.67]
[1766025473580,4.54825473,124.13,124.09,0.67]
[1766025475384,0.57,124.12,124.08,9.49994492]
[1766025475599,4.54825473,124.12,124.09,0.69]
[1766025475758,12.60437071,124.13,124.09,0.69]
[1766025475957,8.62611598,124.13,124.09,0.69]
[1766025476266,0.57,124.12,124.09,0.69]
[1766025476682,8.62672356,124.12,124.09,0.69]
[1766025480289,0.57,124.12,124.09,0.69]
[1766025480980,8.62675171,124.12,124.08,9.49994492]
[1766025481184,8.62675171,124.12,124.09,0.69]
[1766025482386,8.05675171,124.12,124.08,8.80994492]
[1766025482563,3.97825473,124.11,124.06,9.49994492]
[1766025482769,0.57,124.1,124.06,9.49994492]
[1766025482963,0.57,124.1,124.06,8.80994492]
[1766025483170,0.57,124.1,124.07,0.69]